bitfinex-derivatives/quotes_SOLF0:USTF0_20241002
["timestamp","ask_amount","ask_price","bid_price","bid_amount"]
[1727907011936,20.7155,139.86,139.83,1.001]
[1727907011937,3.576,139.84,139.83,1.001]
[1727907012240,3.576,139.84,139.81,1.001]
[1727907012241,17.14,139.84,139.81,1.001]
[1727907012537,17.14,139.82,139.81,1.001]
[1727907012837,3.5765,139.82,139.81,1.001]
[1727907013835,17.14,139.83,139.81,1.001]
[1727907014031,17.14,139.86,139.81,1.001]
[1727907014032,3.5762,139.84,139.81,1.001]
[1727907014231,77.22,139.89,139.81,18.141]
[1727907014232,6.08,139.89,139.81,18.141]
[1727907014431,17.26502,139.91,139.81,18.141]
[1727907014737,17.14,139.89,139.81,1.001]
[1727907015536,6.20502,139.91,139.81,4.5777]
[1727907015537,27.46,139.9,139.81,4.5777]
[1727907015735,3.5754,139.87,139.81,4.5777]
[1727907016747,0.12502,139.91,139.81,32.02987351]
[1727907017145,0.12502,139.91,139.81,28.461]
[1727907017440,3.5754,139.87,139.82,3.5764]
[1727907017839,3.5754,139.87,139.81,28.461]
[1727907018143,3.5754,139.87,139.83,3.5762]
[1727907018348,3.5746,139.9,139.81,32.05669639]
[1727907018741,3.5746,139.9,139.83,27.46]
[1727907018940,0.12502,139.91,139.84,6.08]
[1727907019539,3.5751,139.88,139.84,6.08]
[1727907020539,3.5751,139.88,139.84,9.6558]
[1727907021043,3.69932,139.91,139.84,6.08]
[1727907021246,0.12502,139.91,139.85,27.46]
[1727907021448,0.12502,139.91,139.86,4.1443]
[1727907021649,3.5746,139.9,139.86,6.336]
[1727907021953,3.5746,139.9,139.81,32.06977045]
[1727907021954,27.46,139.88,139.81,1.001]
[1727907022142,6.08,139.9,139.81,1.001]
[1727907022143,27.46,139.86,139.81,1.001]
[1727907022341,33.54,139.86,139.81,1.001]
[1727907022849,27.46,139.86,139.81,1.001]
[1727907023050,6.08,139.87,139.81,1.001]
[1727907023637,6.20502,139.91,139.81,7.081]
[1727907023838,0.12502,139.91,139.82,30.99923363]
[1727907024047,0.12502,139.91,139.84,27.46]
[1727907024346,0.12502,139.91,139.87,27.46]
[1727907024544,0.12502,139.91,139.9,3.5745]
[1727907024746,3.5736,139.94,139.9,3.5745]
[1727907025253,0.12502,139.97,139.91,2.6062]
[1727907025846,3.5732,139.95,139.91,6.1802]
[1727907026952,3.5732,139.95,139.92,3.5739]
[1727907027653,0.12502,139.97,139.92,3.5739]
[1727907027654,3.5736,139.94,139.92,6.44]
[1727907027955,0.12502,139.97,139.92,6.44]
[1727907029038,0.12502,140.03,139.95,27.46]
[1727907029240,1.0,140.08,139.97,0.12502]
[1727907029450,28.46,140.06,139.97,0.12502]
[1727907029655,28.46,140.06,139.98,6.44]
[1727907030152,27.46,140.03,139.97,6.56502]
[1727907030351,27.46,140.01,139.97,0.12502]
[1727907031048,3.5724,139.98,139.97,0.12502]
[1727907031443,27.46,140.01,139.97,0.12502]
[1727907031640,3.5718,140.01,139.97,0.12502]
[1727907032144,33.9,140.04,139.97,0.12502]
[1727907032353,3.572,140.0,139.97,0.12502]
[1727907032948,3.5717,140.01,139.97,3.69762]
[1727907033155,3.5717,140.01,139.97,10.13762]
[1727907033357,33.9,140.04,139.97,6.56502]
[1727907033546,3.5724,139.98,139.97,0.12502]
[1727907033857,33.9,140.04,139.97,0.12502]
[1727907034355,3.5724,139.99,139.97,0.12502]
[1727907034855,3.5724,139.98,139.97,0.12502]
[1727907035758,3.5721,140.0,139.97,0.12502]
[1727907035960,3.5721,140.0,139.97,3.69772]
[1727907036159,33.9,140.04,139.97,0.12502]
[1727907036455,3.5714,140.02,139.97,0.12502]
[1727907036659,33.9,140.04,139.97,0.12502]
[1727907037151,3.5721,140.0,139.97,0.12502]
[1727907038762,3.5718,140.01,139.97,3.69752]
[1727907039148,7.44,140.08,140.01,3.5715]
[1727907039458,7.44,140.08,140.0,6.44]
[1727907039662,1.0,140.08,140.0,6.44]
[1727907040054,1.0,140.08,140.0,10.0117]
[1727907040252,27.46,140.04,139.98,2.7076]
[1727907041052,3.5714,140.03,139.98,2.7076]
[1727907041255,27.46,140.04,139.98,2.7076]
[1727907041664,3.5718,140.01,139.98,2.7076]
[1727907042054,27.46,140.04,139.98,2.7076]
[1727907042355,27.46,140.02,139.97,0.12502]
[1727907042556,27.46,140.04,139.97,0.12502]
[1727907042955,3.5718,140.01,139.97,3.69762]
[1727907043157,3.5718,140.01,139.97,0.12502]
[1727907043664,3.572,140.0,139.97,3.69752]
[1727907045269,27.46,140.01,139.97,0.12502]
[1727907045564,3.5724,139.98,139.97,0.12502]
[1727907045753,27.46,139.99,139.92,1.3149]
[1727907045955,33.9,140.01,139.89,7.7891]
[1727907045956,27.46,139.97,139.89,7.7891]
[1727907046468,27.46,139.94,139.88,2.7149]
[1727907047161,27.46,139.92,139.85,0.12502]
[1727907047370,33.9,139.92,139.85,0.12502]
[1727907048064,6.44,139.92,139.85,0.12502]
[1727907048269,3.5749,139.89,139.85,0.12502]
[1727907048866,3.5749,139.89,139.85,3.70072]
[1727907049170,3.5755,139.86,139.85,0.12502]
[1727907049965,3.5753,139.87,139.85,0.12502]
[1727907050169,33.9,139.92,139.85,0.12502]
[1727907050561,27.46,139.92,139.85,0.12502]
[1727907050760,6.44,139.93,139.85,0.12502]
[1727907051071,3.5749,139.89,139.85,0.12502]
[1727907051272,6.44,139.93,139.85,0.12502]
[1727907051774,27.46,139.94,139.85,0.12502]
[1727907051964,6.44,139.94,139.86,6.44]
[1727907052160,3.5741,139.92,139.86,6.44]
[1727907052566,3.5741,139.92,139.87,3.5752]
[1727907052768,33.9,139.96,139.86,6.44]
[1727907052966,3.5738,139.93,139.86,6.44]
[1727907053166,33.9,139.96,139.86,6.44]
[1727907053760,33.9,139.96,139.87,3.5752]
[1727907053965,33.9,139.96,139.86,6.44]
[1727907054876,33.9,139.96,139.86,33.9]
[1727907055175,3.5739,139.93,139.86,33.9]
[1727907055775,33.9,139.96,139.86,33.9]
[1727907056868,3.5741,139.92,139.88,3.5749]
[1727907057873,3.5742,139.91,139.87,3.5752]
[1727907058376,33.9,139.96,139.86,6.44]
[1727907058570,3.5746,139.9,139.86,10.0153]
[1727907058769,3.5746,139.9,139.86,6.44]
[1727907059271,33.9,139.96,139.86,6.44]
[1727907059467,0.12502,139.97,139.87,27.46]
[1727907059680,0.12502,139.97,139.88,3.63731843]
[1727907060178,0.12502,139.97,139.87,27.46]
[1727907060781,3.5744,139.91,139.88,3.5749]
[1727907060974,0.12502,139.97,139.87,27.46]
[1727907061175,27.46,139.96,139.85,27.58502]
[1727907061480,6.48,139.95,139.86,6.48]
[1727907061983,3.5744,139.91,139.86,6.48]
[1727907062576,3.5744,139.91,139.88,3.5748]
[1727907063380,6.48,139.95,139.86,6.48]
[1727907063580,3.5741,139.92,139.89,3.5747]
[1727907064185,3.5739,139.93,139.9,3.5745]
[1727907064681,3.5739,139.93,139.9,10.0545]
[1727907065583,0.12502,139.97,139.9,10.0545]
[1727907065785,3.574,139.92,139.9,10.0545]
[1727907066478,0.12502,139.97,139.85,27.58502]
[1727907066683,27.46,139.96,139.86,6.48]
[1727907067074,7.27052,139.97,139.85,0.12502]
[1727907067075,3.5755,139.86,139.85,0.12502]
[1727907067681,7.1476,139.93,139.81,1.001]
[1727907067682,33.94,139.87,139.81,1.001]
[1727907067984,6.48,139.88,139.81,4.5777]
[1727907068170,6.48,139.88,139.81,1.001]
[1727907068780,3.5761,139.84,139.81,1.001]
[1727907069183,27.58502,139.91,139.81,4.60732583]
[1727907069383,3.5751,139.88,139.82,33.94]
[1727907069586,6.60502,139.91,139.82,33.94]
[1727907069889,0.12502,139.91,139.84,3.5759]
[1727907070280,3.5754,139.87,139.83,3.5761]
[1727907070681,0.12502,139.91,139.81,1.001]
[1727907070881,3.5756,139.86,139.82,3.5764]
[1727907071181,27.46,139.89,139.81,7.481]
[1727907071488,3.5765,139.83,139.81,1.001]
[1727907076699,0.12502,139.91,139.82,27.46]
[1727907076895,0.12502,139.91,139.84,27.46]
[1727907077198,0.12502,139.91,139.83,6.48]
[1727907078505,3.575,139.88,139.85,3.5756]
[1727907079001,3.5754,139.87,139.84,3.5759]
[1727907079208,0.12502,139.91,139.84,3.5759]
[1727907079404,0.12502,139.91,139.83,6.48]
[1727907080099,3.5751,139.88,139.85,3.5756]
[1727907080504,0.12502,139.91,139.83,6.48]
[1727907080706,3.5747,139.9,139.87,3.5752]
[1727907081296,0.12502,139.91,139.87,3.5752]
[1727907081297,3.5747,139.89,139.87,3.5752]
[1727907081706,3.5747,139.89,139.86,3.5754]
[1727907081909,3.5751,139.88,139.83,6.48]
[1727907082204,0.12502,139.91,139.83,6.48]
[1727907082403,0.12502,139.91,139.87,27.46]
[1727907082610,0.12502,139.97,139.88,12.88500119]
[1727907082796,0.12502,139.97,139.91,3.574]
[1727907082996,0.12502,139.97,139.88,9.2342]
[1727907083402,0.12502,139.97,139.89,3.5746]
[1727907083602,3.5739,139.93,139.89,3.5746]
[1727907084405,3.5739,139.93,139.9,3.5744]
[1727907085115,0.12502,139.97,139.91,3.5741]
[1727907085315,0.12502,139.97,139.88,9.2342]
[1727907085510,0.12502,139.97,139.89,6.48]
[1727907085711,3.5738,139.93,139.89,10.0546]
[1727907086313,27.46,139.94,139.85,0.12502]
[1727907086508,27.46,139.94,139.85,6.60502]
[1727907086813,3.5746,139.9,139.85,10.18052]
[1727907087015,27.46,139.94,139.85,10.18052]
[1727907087412,3.5743,139.91,139.87,3.5752]
[1727907087614,33.94,139.95,139.85,6.60502]
[1727907088012,3.575,139.89,139.85,10.18072]
[1727907088215,33.94,139.95,139.85,6.60502]
[1727907088808,33.94,139.95,139.85,10.18052]
[1727907089422,27.46,139.93,139.85,0.12502]
[1727907089613,27.46,139.91,139.85,0.12502]
[1727907089919,0.1287,139.96,139.85,0.12502]
[1727907089920,27.46,139.89,139.85,0.12502]
[1727907090819,27.46,139.87,139.81,1.001]
[1727907091123,27.46,139.85,139.81,1.001]
[1727907091420,3.5765,139.82,139.81,1.001]
[1727907092515,27.46,139.83,139.79,0.12502]
[1727907092722,3.5773,139.79,139.76,1.001]
[1727907092925,10.0573,139.79,139.76,1.001]
[1727907094525,3.5778,139.77,139.76,1.001]
[1727907094824,31.0378,139.77,139.76,1.001]
[1727907095011,10.0578,139.77,139.76,1.001]
[1727907095719,3.5778,139.77,139.76,1.001]
[1727907100018,6.48,139.83,139.76,1.001]
[1727907101415,27.46,139.84,139.76,1.001]
[1727907101719,6.48,139.83,139.76,1.001]
[1727907101918,77.34502,139.85,139.76,3.7451]
[1727907101919,3.5769,139.81,139.76,3.7451]
[1727907102125,77.34502,139.85,139.76,5.0921]
[1727907102126,6.48,139.84,139.76,5.0921]
[1727907102725,3.5772,139.8,139.76,8.6701]
[1727907105024,3.5773,139.79,139.76,8.6701]
[1727907105626,6.48,139.84,139.76,3.7451]
[1727907106322,3.5775,139.79,139.76,3.7451]
[1727907106935,3.5775,139.78,139.76,3.7451]
[1727907108133,6.48,139.8,139.76,1.001]
[1727907108429,3.5778,139.77,139.76,1.001]
[1727907112629,3.5778,139.77,139.75,0.12518]
[1727907112630,27.46,139.78,139.75,0.12518]
[1727907112825,3.578,139.76,139.75,0.12518]
[1727907113036,9.878,139.76,139.75,0.12518]
[1727907114238,3.5786,139.74,139.73,1.12602]
[1727907114442,77.28,139.75,139.71,1.001]
[1727907114640,27.46,139.72,139.68,1.001]
[1727907114937,78.28,139.75,139.68,1.001]
[1727907114938,31.0398,139.69,139.68,1.001]
[1727907115135,27.46,139.69,139.67,0.12502]
[1727907115339,27.46,139.67,139.58,1.001]
[1727907115525,29.37,139.71,139.58,1.001]
[1727907115526,27.46,139.64,139.58,1.001]
[1727907115726,7.34,139.64,139.58,1.001]
[1727907115930,10.9211,139.64,139.58,1.001]
[1727907116444,88.29372315,139.64,139.58,1.001]
[1727907116629,31.0424,139.59,139.58,1.001]
[1727907116827,11.4624,139.59,139.58,1.001]
[1727907117147,3.5829,139.57,139.56,1.12618]
[1727907118337,3.5829,139.57,139.53,3.8349]
[1727907118338,31.10383076,139.57,139.53,3.8349]
[1727907118645,27.46,139.54,139.49,1.12602]
[1727907118839,9.22,139.53,139.49,1.12602]
[1727907119039,27.46,139.52,139.49,1.12602]
[1727907119252,27.46,139.52,139.44,1.001]
[1727907119544,37.68,139.53,139.44,1.001]
[1727907119545,3.5855,139.47,139.44,1.001]
[1727907119729,12.8055,139.47,139.44,1.001]
[1727907120136,9.22,139.49,139.44,1.001]
[1727907120346,36.68,139.5,139.44,1.001]
[1727907120637,3.5855,139.47,139.44,1.001]
[1727907120838,12.83579581,139.5,139.44,1.001]
[1727907120839,9.22,139.5,139.44,1.001]
[1727907121047,1.0,139.49,139.44,1.001]
[1727907121234,9.78502,139.55,139.44,1.001]
[1727907121440,0.12502,139.55,139.45,27.46]
[1727907121636,0.12502,139.55,139.48,27.46]
[1727907121947,0.12502,139.55,139.49,3.5847]
[1727907122144,0.12502,139.55,139.48,27.46]
[1727907122145,0.12502,139.55,139.48,30.2233]
[1727907122445,0.12502,139.55,139.5,3.5847]
[1727907122645,0.12502,139.55,139.5,27.46]
[1727907123035,100.27662024,139.6,139.53,3.5837]
[1727907123235,100.27662024,139.6,139.49,0.12502]
[1727907123236,0.12502,139.61,139.52,27.46]
[1727907123631,0.12502,139.61,139.53,44.72]
[1727907124245,0.12502,139.61,139.51,54.38]
[1727907124845,0.12502,139.61,139.53,44.72]
[1727907126039,44.72,139.56,139.49,0.12502]
[1727907126241,54.38,139.58,139.49,0.12502]
[1727907126543,1.0,139.6,139.53,3.5837]
[1727907126544,3.5825,139.59,139.53,3.5837]
[1727907126749,3.5825,139.59,139.49,0.12502]
[1727907127145,3.5825,139.59,139.53,3.5838]
[1727907127346,3.5832,139.56,139.49,0.12502]
[1727907127547,1.0,139.6,139.49,0.12502]
[1727907127749,1.0,139.6,139.52,3.584]
[1727907127940,44.84502,139.61,139.49,0.12502]
[1727907128354,0.12502,139.61,139.51,44.72]
[1727907128553,3.5827,139.58,139.52,9.66]
[1727907128741,0.12502,139.61,139.54,3.5835]
[1727907129251,0.12502,139.61,139.52,9.66]
[1727907129459,0.12502,139.61,139.58,3.5825]
[1727907129760,0.12502,139.61,139.54,44.72]
[1727907129948,54.50502,139.67,139.6,3.5821]
[1727907130360,54.50502,139.67,139.57,44.72]
[1727907130361,0.12502,139.67,139.57,44.72]
[1727907130555,44.72,139.64,139.55,0.12502]
[1727907131258,44.84502,139.67,139.55,0.12502]
[1727907131464,0.12502,139.67,139.56,44.72]
[1727907131660,3.70542,139.67,139.62,3.5816]
[1727907131858,0.12502,139.67,139.59,54.38]
[1727907132766,0.12502,139.67,139.63,3.5813]
[1727907133258,3.5798,139.7,139.65,3.5808]
[1727907133461,44.72,139.71,139.61,44.84502]
[1727907133757,3.5799,139.69,139.65,3.5808]
[1727907133948,9.78502,139.73,139.61,44.84502]
[1727907134945,4.5791,139.72,139.66,3.5805]
[1727907135257,4.5791,139.72,139.67,2.7666]
[1727907135258,1.0,139.72,139.67,2.7666]
[1727907135649,44.72,139.71,139.67,2.7666]
[1727907136153,3.5796,139.7,139.67,2.7666]
[1727907136349,44.72,139.71,139.67,2.7666]
[1727907136958,3.5798,139.7,139.67,2.7666]
[1727907137465,1.0,139.72,139.67,2.7666]
[1727907137858,1.0,139.72,139.68,3.58]
[1727907138052,1.0,139.72,139.67,2.7666]
[1727907138257,3.5798,139.7,139.67,2.7666]
[1727907138764,3.5794,139.71,139.67,6.3469]
[1727907139272,4.5791,139.72,139.68,3.58]
[1727907139765,1.0,139.72,139.7,3.5795]
[1727907139961,0.12502,139.73,139.67,12.4266]
[1727907140465,44.84502,139.73,139.67,2.7666]
[1727907141052,3.5798,139.7,139.67,2.7666]
[1727907141252,0.12502,139.73,139.67,2.7666]
[1727907141470,3.70392,139.73,139.69,3.5798]
[1727907141658,0.12502,139.73,139.67,2.7666]
[1727907142065,0.12502,139.73,139.68,3.5799]
[1727907142254,0.12502,139.73,139.67,2.7666]
[1727907144074,0.12502,139.73,139.69,3.5798]
[1727907144075,3.70392,139.73,139.69,3.5798]
[1727907144470,0.12502,139.73,139.68,3.5799]
[1727907144767,0.12502,139.73,139.67,2.7666]
[1727907145162,3.70402,139.73,139.69,3.5797]
[1727907145354,3.70402,139.73,139.67,2.7666]
[1727907145558,3.70402,139.73,139.69,3.5797]
[1727907145958,0.12502,139.73,139.67,2.7666]
[1727907146156,0.12502,139.73,139.7,3.5794]
[1727907147067,0.12502,139.73,139.71,3.5792]
[1727907147461,0.12502,139.73,139.7,3.5795]
[1727907147664,0.12502,139.73,139.67,2.7666]
[1727907147965,1.0,139.74,139.67,2.89162]
[1727907148759,1.0,139.74,139.71,3.5791]
[1727907149078,1.0,139.74,139.69,9.22]
[1727907149370,1.0,139.76,139.7,27.48]
[1727907150065,1.0,139.76,139.75,3.5783]
[1727907150773,4.70232,139.79,139.76,3.5779]
[1727907150970,1.0,139.81,139.75,27.48]
[1727907151175,0.12502,139.85,139.76,2.6402]
[1727907151477,0.12502,139.85,139.82,3.5763]
[1727907151860,0.12502,139.85,139.79,9.22]
[1727907152065,0.12502,139.85,139.83,3.5763]
[1727907152265,0.12502,139.85,139.79,36.7]
[1727907152466,0.12502,139.85,139.8,3.5768]
[1727907152672,0.12502,139.85,139.79,36.7]
[1727907153074,0.12502,139.85,139.82,3.5763]
[1727907153665,0.12502,139.85,139.79,36.7]
[1727907153871,0.12502,139.85,139.83,3.5762]
[1727907154065,0.12502,139.85,139.79,36.7]
[1727907154465,3.70082,139.85,139.79,9.22]
[1727907154671,0.12502,139.85,139.76,11.8602]
[1727907155267,27.48,139.84,139.76,11.8602]
[1727907155763,3.5766,139.82,139.77,3.5776]
[1727907155968,27.48,139.84,139.77,3.5776]
[1727907156170,27.48,139.79,139.76,1.3011]
[1727907156369,3.5778,139.77,139.76,1.3011]
[1727907156561,27.48,139.79,139.76,1.3011]
[1727907156766,9.22,139.8,139.76,1.3011]
[1727907157068,9.22,139.83,139.76,1.3011]
[1727907157581,27.48,139.79,139.73,0.12502]
[1727907157768,27.48,139.76,139.73,0.12502]
[1727907157963,3.5786,139.74,139.73,0.12502]
[1727907158169,36.7,139.79,139.73,0.12502]
[1727907158669,3.5784,139.75,139.73,0.12502]
[1727907158976,36.7,139.79,139.73,0.12502]
[1727907159177,1.346,139.78,139.73,0.12502]
[1727907159476,27.48,139.76,139.73,0.12502]
[1727907159776,3.5783,139.75,139.73,0.12502]
[1727907159977,36.7,139.78,139.73,0.12502]
[1727907160371,3.5786,139.74,139.73,0.12502]
[1727907163575,9.22,139.77,139.73,0.12502]
[1727907163785,27.48,139.75,139.67,0.12502]
[1727907163984,3.5801,139.68,139.67,0.12502]
[1727907165282,27.48,139.69,139.61,1.12602]
[1727907165484,27.48,139.66,139.61,1.12602]
[1727907165687,36.7,139.66,139.61,1.12602]
[1727907166284,9.22,139.66,139.61,1.12602]
[1727907166471,3.5813,139.64,139.61,1.12602]
[1727907166675,9.22,139.66,139.61,1.12602]
[1727907167079,27.48,139.68,139.61,1.12602]
[1727907167280,9.22,139.67,139.61,1.12602]
[1727907168695,44.7,139.65,139.61,1.12602]
[1727907168876,44.7,139.62,139.58,1.001]
[1727907169180,3.5824,139.59,139.58,1.001]
[1727907169586,3.5829,139.57,139.56,1.001]
[1727907171879,3.5832,139.56,139.55,0.12502]
[1727907172086,44.7,139.58,139.53,1.001]
[1727907172282,44.7,139.55,139.53,1.001]
[1727907172486,3.5837,139.54,139.53,1.001]
[1727907173794,3.5842,139.52,139.51,1.001]
[1727907175693,9.22,139.56,139.49,1.12602]
[1727907175694,3.5847,139.5,139.49,1.12602]
[1727907176283,44.7,139.55,139.49,1.12602]
[1727907176479,9.22,139.54,139.49,1.12602]
[1727907176694,44.7,139.53,139.49,1.12602]
[1727907176889,44.7,139.51,139.45,1.3924]
[1727907177294,3.5855,139.47,139.45,1.3924]
[1727907177493,3.5855,139.47,139.44,1.001]
[1727907178401,44.7,139.48,139.44,1.001]
[1727907178698,8.98,139.49,139.44,1.001]
[1727907178699,44.7,139.47,139.44,1.001]
[1727907179103,3.5859,139.46,139.44,1.001]
[1727907179287,8.98,139.49,139.44,1.001]
[1727907179599,53.68,139.49,139.44,1.001]
[1727907179899,44.7,139.47,139.44,1.001]
[1727907180294,3.586,139.45,139.44,1.001]
[1727907180490,44.7,139.49,139.44,1.001]
[1727907180692,53.68,139.49,139.44,1.001]
[1727907181091,44.7,139.49,139.44,1.001]
[1727907181286,8.98,139.51,139.44,3.7151]
[1727907181491,3.5849,139.5,139.45,3.5859]
[1727907181698,44.7,139.49,139.44,3.7151]
[1727907182307,44.7,139.47,139.44,1.001]
[1727907182514,44.7,139.45,139.44,1.001]
[1727907182804,48.2856,139.47,139.44,1.001]
[1727907182997,3.5856,139.47,139.44,1.001]
[1727907183198,44.7,139.49,139.44,1.001]
[1727907183398,3.5849,139.5,139.46,3.5857]
[1727907183602,8.98,139.51,139.44,1.001]
[1727907183803,12.5646,139.51,139.44,1.001]
[1727907184005,8.98,139.51,139.45,2.7208]
[1727907184217,44.7,139.54,139.45,2.7208]
[1727907184405,44.7,139.54,139.48,3.585]
[1727907184715,44.7,139.54,139.46,1.4203]
[1727907185512,3.5841,139.53,139.46,1.4203]
[1727907185702,0.12502,139.55,139.46,10.4003]
[1727907187001,3.5844,139.52,139.47,3.5853]
[1727907187196,44.7,139.5,139.45,2.7208]
[1727907187406,44.7,139.48,139.44,1.001]
[1727907187814,3.5859,139.46,139.44,1.001]
[1727907189407,44.7,139.45,139.44,1.001]
[1727907189614,48.286,139.45,139.44,1.001]
[1727907189810,48.286,139.45,139.43,0.12502]
[1727907190007,3.5868,139.42,139.37,0.12502]
[1727907190710,3.5868,139.42,139.37,3.71292]
[1727907191112,8.98,139.48,139.37,0.12502]
[1727907191306,44.7,139.46,139.37,0.12502]
[1727907191507,44.7,139.44,139.37,0.12502]
[1727907191815,44.7,139.46,139.37,0.12502]
[1727907192112,3.5857,139.47,139.37,0.12502]
[1727907192408,9.10502,139.49,139.37,0.12502]
[1727907192409,0.12502,139.49,139.41,45.701]
[1727907193003,0.12502,139.49,139.47,3.5853]
[1727907193204,44.82502,139.55,139.45,8.98]
[1727907193408,44.82502,139.55,139.51,3.5844]
[1727907193715,44.82502,139.55,139.46,2.8037]
[1727907193716,0.12502,139.55,139.46,47.5037]
[1727907193914,0.12502,139.55,139.52,3.584]
[1727907194312,0.12502,139.55,139.5,8.98]
[1727907194809,0.12502,139.55,139.52,3.5842]
[1727907195117,0.12502,139.55,139.5,8.98]
[1727907197019,3.5841,139.53,139.48,3.5851]
[1727907197206,44.82502,139.55,139.48,8.98]
[1727907197913,3.5841,139.53,139.49,3.585]
[1727907198213,44.82502,139.55,139.47,8.98]
[1727907198416,3.5847,139.5,139.47,13.9837]
[1727907198810,44.82502,139.55,139.47,13.9837]
[1727907199610,3.5846,139.51,139.47,13.9837]
[1727907200215,44.7,139.53,139.43,0.12502]
[1727907200824,3.5847,139.51,139.47,3.5853]
[1727907201013,44.7,139.53,139.47,3.5853]
[1727907202118,3.5849,139.5,139.47,3.5853]
[1727907202315,44.7,139.53,139.43,44.82502]
[1727907202510,53.80502,139.55,139.43,48.34010582]
[1727907202819,0.12502,139.55,139.45,44.7]
[1727907203016,0.12502,139.55,139.48,44.7]
[1727907203221,8.98,139.59,139.49,0.12502]
[1727907204111,3.5836,139.55,139.49,0.12502]
[1727907204313,53.68,139.59,139.49,0.12502]
[1727907204819,3.5837,139.54,139.51,3.5843]
[1727907205223,53.68,139.59,139.5,1.3968]
[1727907205523,3.5836,139.55,139.52,3.5842]
[1727907206416,44.7,139.57,139.5,1.3968]
[1727907207125,3.5841,139.53,139.5,1.3968]
[1727907207323,44.7,139.57,139.5,1.3968]
[1727907207622,3.5847,139.5,139.49,0.12502]
[1727907209311,44.7,139.52,139.44,3.5861]
[1727907209618,44.7,139.47,139.43,1.54802]
[1727907209926,3.5863,139.44,139.43,1.54802]
[1727907210315,44.7,139.47,139.43,1.54802]
[1727907210827,44.7,139.47,139.43,0.12502]
[1727907210828,3.5863,139.44,139.43,0.12502]
[1727907211015,44.7,139.45,139.41,1.001]
[1727907211215,44.7,139.42,139.41,1.001]
[1727907211422,48.2868,139.42,139.41,1.001]
[1727907212025,3.5868,139.42,139.41,1.001]
[1727907212231,8.96,139.44,139.41,1.001]
[1727907213319,3.5868,139.42,139.41,1.001]
[1727907214725,3.5864,139.44,139.41,1.001]
[1727907215346,44.82502,139.49,139.41,1.001]
[1727907215529,53.78502,139.49,139.42,1.3023]
[1727907216035,0.12502,139.49,139.43,1.4219]
[1727907216432,0.12502,139.49,139.41,45.701]
[1727907216433,44.82502,139.49,139.41,1.001]
[1727907216629,44.7,139.46,139.41,1.001]
[1727907217031,3.5862,139.45,139.41,4.5879]
[1727907217534,3.5862,139.45,139.41,1.001]
[1727907217832,48.2858,139.46,139.41,1.001]
[1727907218038,3.5858,139.46,139.41,1.001]
[1727907218234,44.82502,139.49,139.41,9.981]